bitfinex-derivatives/quotes_ETHF0:USTF0_20260131
["timestamp","ask_amount","ask_price","bid_price","bid_amount"]
[1769848690590,3.56946258,2645.3,2643.5,9.03475469]
[1769848690896,3.56946258,2645.3,2643.6,2.26875469]
[1769848691192,4.34780173,2645.2,2643.6,2.26875469]
[1769848691390,3.56946258,2645.3,2643.6,2.26875469]
[1769848691690,7.91726431,2645.2,2643.6,2.26875469]
[1769848691892,3.56946258,2645.1,2643.6,2.26875469]
[1769848692086,3.56946258,2645.7,2643.6,2.26875469]
[1769848692394,3.56946258,2645.5,2643.6,2.33033014]
[1769848692989,4.19547674,2645.4,2643.6,2.51977014]
[1769848693290,3.56946258,2645.5,2643.8,2.33132991]
[1769848693794,3.56946258,2645.3,2643.2,2.33132991]
[1769848694294,3.56946258,2645.1,2643.2,2.33132991]
[1769848694491,4.20794185,2645.2,2643.8,2.33132991]
[1769848694792,3.56946258,2645.5,2644.1,2.33132991]
[1769848694987,3.56946258,2645.5,2643.7,2.33132991]
[1769848695193,3.56946258,2645.3,2643.3,2.52078991]
[1769848695489,3.56946258,2645.1,2643.3,2.52078991]
[1769848696001,3.56946258,2644.9,2643.3,2.52078991]
[1769848696400,3.56946258,2644.7,2643.3,2.52078991]
[1769848696603,3.56946258,2645.3,2643.5,2.37396705]
[1769848696999,4.32364573,2645.2,2643.5,2.56341705]
[1769848697595,3.56946258,2645.1,2643.2,2.46314169]
[1769848698096,3.56946258,2644.9,2643.2,2.46314169]
[1769848698492,3.56946258,2644.7,2643.2,2.46314169]
[1769848699096,3.56946258,2644.7,2643.3,2.46314169]
[1769848699284,3.56946258,2645.1,2643.3,2.65260169]
[1769848699485,3.56946258,2645.1,2643.6,2.65711346]
[1769848699691,3.56946258,2645.1,2643.7,2.65710346]
[1769848700493,3.56946258,2646.0,2643.8,2.65709346]
[1769848700698,3.56946258,2645.8,2644.0,2.65708346]
[1769848700998,4.0862229,2645.7,2644.0,2.65708346]
[1769848701298,3.56946258,2645.6,2644.0,2.65708346]
[1769848701599,0.1049414,2645.5,2643.6,2.50658572]
[1769848701805,3.56946258,2645.4,2643.6,2.50658572]
[1769848702101,3.56946258,2645.4,2643.6,2.69602572]
[1769848702296,4.33053323,2645.3,2643.8,2.50658572]
[1769848702495,3.56946258,2645.3,2643.8,2.50658572]
[1769848703001,3.56946258,2645.3,2643.8,2.69601572]
[1769848703300,3.56946258,2646.1,2643.8,2.50658572]
[1769848703802,3.56946258,2646.0,2643.8,2.50658572]
[1769848704298,3.56946258,2645.8,2643.8,2.50658572]
[1769848704495,3.56946258,2645.8,2644.1,2.50401141]
[1769848704802,3.56946258,2645.6,2644.1,2.50401141]
[1769848705002,3.56946258,2645.6,2644.1,2.69341141]
[1769848705602,3.56946258,2645.6,2644.3,2.50879051]
[1769848705805,3.56946258,2646.1,2644.7,2.69815051]
[1769848706100,3.56946258,2646.1,2644.3,4.28436101]
[1769848706303,3.56946258,2646.1,2644.4,2.50879051]
[1769848706804,3.56946258,2646.1,2644.6,2.50879051]
[1769848707399,3.56946258,2645.9,2644.6,0.18937]
[1769848708196,0.0037458,2646.2,2644.3,0.00490313]
[1769848708197,3.56946258,2645.7,2644.3,0.00490313]
[1769848708903,3.56946258,2645.5,2644.3,0.00490313]
[1769848709298,3.56946258,2645.3,2644.3,0.00490313]
[1769848709796,3.56946258,2645.1,2644.3,0.00215249]
[1769848716611,3.75885258,2644.4,2642.1,0.18955]
[1769848716998,3.80909733,2644.2,2642.0,2.43647316]
[1769848717198,3.80909733,2644.2,2641.4,6.702]
[1769848717199,3.80909733,2644.2,2642.3,2.5475222]
[1769848717600,3.80909733,2644.0,2642.3,2.5475222]
[1769848717815,3.80909733,2644.0,2642.3,0.19362469]
[1769848718010,3.80909733,2643.8,2642.3,0.19362469]
[1769848718407,3.81307444,2643.8,2642.3,0.00409469]
[1769848718613,3.80909733,2643.6,2642.3,0.00409469]
[1769848718802,3.80909733,2643.6,2642.3,2.36208689]
[1769848719001,0.00397711,2643.8,2642.7,2.3579922]
[1769848719201,3.80909733,2644.4,2643.0,2.61345901]
[1769848719612,3.70315574,2644.2,2642.6,3.784]
[1769848719808,3.70315574,2644.2,2642.6,3.97351]
[1769848720114,3.70315574,2644.2,2642.7,0.18951]
[1769848720309,3.70683805,2644.2,2642.7,0.18951]
[1769848721215,3.70683805,2644.2,2642.7,2.61039967]
[1769848721713,3.70683805,2644.2,2642.8,0.1895]
[1769848721908,3.70683805,2644.2,2642.9,0.18949]
[1769848722109,3.70683805,2644.2,2642.9,2.83960483]
[1769848722916,0.00368231,2644.2,2643.2,2.83958483]
[1769848723115,0.00368231,2644.2,2643.2,0.18947]
[1769848723316,3.70683805,2644.2,2643.2,0.18947]
[1769848724315,3.70683805,2644.2,2642.6,3.97351]
[1769848724713,3.70315574,2644.0,2642.6,3.784]
[1769848725113,3.70315574,2643.8,2642.6,3.784]
[1769848725326,3.70315574,2643.8,2642.6,6.45716187]
[1769848725518,3.70315574,2643.8,2642.7,0.18951]
[1769848725818,3.70315574,2643.8,2642.8,0.1895]
[1769848726017,3.70683805,2644.2,2642.8,0.1895]
[1769848726313,3.70683805,2644.2,2643.0,2.86264187]
[1769848726714,3.70683805,2644.2,2643.0,0.18948]
[1769848726915,3.70315574,2644.0,2643.0,0.18948]
[1769848727221,4.34992812,2643.9,2642.6,2.66799934]
[1769848727612,3.70315574,2644.0,2642.6,2.66799934]
[1769848728209,3.70315574,2644.0,2642.7,0.18951]
[1769848728721,3.70315574,2644.0,2642.7,2.85750934]
[1769848729320,3.70315574,2644.0,2642.8,0.1895]
[1769848730622,0.00368231,2644.2,2642.8,0.1895]
[1769848730623,3.70315574,2643.8,2642.8,0.1895]
[1769848731120,3.70315574,2643.8,2642.4,3.785]
[1769848731623,3.70315574,2643.6,2642.4,3.785]
[1769848732010,3.70315574,2643.4,2642.4,3.785]
[1769848732418,3.70315574,2643.4,2642.4,3.97453]
[1769848732620,3.70315574,2643.8,2642.4,3.97453]
[1769848733121,3.70315574,2643.8,2642.5,0.18952]
[1769848733322,4.14022196,2643.7,2642.5,0.18952]
[1769848733519,3.70315574,2643.6,2642.5,0.18952]
[1769848733821,3.70315574,2643.6,2642.6,0.18951]
[1769848736124,3.70315574,2643.6,2642.7,0.18951]
[1769848738723,0.00368231,2644.2,2643.1,0.18948]
[1769848739626,4.10220741,2644.1,2643.1,0.18948]
[1769848740819,3.70315574,2644.0,2642.4,3.785]
[1769848741027,3.70315574,2644.0,2642.5,0.18952]
[1769848741226,3.70315574,2643.8,2642.4,3.785]
[1769848741427,3.70315574,2643.8,2642.3,0.00409469]
[1769848741623,3.70315574,2643.6,2641.8,0.18957]
[1769848742020,3.70315574,2643.4,2641.9,0.18956]
[1769848742323,3.70315574,2643.2,2641.9,0.18956]
[1769848742722,3.70315574,2643.0,2641.2,0.18961]
[1769848743022,4.03851375,2642.9,2640.9,3.67117728]
[1769848743231,3.70315574,2642.8,2640.5,3.67117728]
[1769848743430,3.70315574,2642.8,2640.8,0.18964]
[1769848743630,3.70315574,2642.6,2640.8,0.18964]
[1769848743926,4.10116696,2642.5,2640.8,0.19423737]
[1769848744226,3.70315574,2642.4,2640.8,0.19423737]
[1769848744631,3.70315574,2642.2,2640.8,0.19423737]
[1769848744820,3.70801998,2642.2,2641.2,0.18961]
[1769848745025,3.70315574,2642.0,2641.2,0.18961]
[1769848745421,4.24e-06,2642.2,2641.1,3.67117728]
[1769848745621,4.24e-06,2642.2,2641.8,0.18957]
[1769848745925,3.70315998,2642.2,2641.1,3.67117728]
[1769848746323,7.9904918,2642.1,2641.4,0.1896]
[1769848746726,3.70315574,2642.0,2640.8,0.00459737]
[1769848747127,3.5911935,2641.8,2640.8,0.00459737]
[1769848747831,3.5911935,2641.6,2640.8,0.00459737]
[1769848748422,3.5911935,2642.0,2640.8,0.00459737]
[1769848748817,7.54225621,2641.8,2640.8,0.00459737]
[1769848749026,3.5911935,2641.7,2640.8,0.00459737]
[1769848749420,3.5911935,2641.6,2640.8,0.00459737]
[1769848749623,3.5911935,2641.6,2640.0,3.81844171]
[1769848749831,3.5911935,2641.4,2640.0,3.81844171]
[1769848750128,3.5911935,2641.2,2639.6,3.81844171]
[1769848750629,3.5911935,2641.0,2639.6,3.82159104]
[1769848751134,3.5911935,2640.8,2639.6,0.00314933]
[1769848751430,3.5911935,2640.6,2639.6,0.00314933]
[1769848751626,0.46274256,2640.7,2639.6,3.82159104]
[1769848751822,4.04251716,2640.8,2639.8,4.00815171]
[1769848752026,3.5911935,2641.4,2640.3,0.18968]
[1769848752227,3.5911935,2641.4,2640.3,4.00812171]
[1769848752428,3.5911935,2641.2,2639.8,3.787]
[1769848752630,3.5911935,2641.2,2640.0,0.1897]
[1769848752829,3.5911935,2641.2,2640.1,3.81844171]
[1769848753336,3.5911935,2641.2,2640.1,0.18969]
[1769848753531,3.5911935,2641.0,2640.1,0.18969]
[1769848753830,4.10547661,2640.9,2640.1,0.18969]
[1769848754335,3.5911935,2641.3,2640.1,0.18969]
[1769848754636,7.65655102,2641.2,2640.1,0.18969]
[1769848754934,3.5911935,2641.1,2640.1,0.18969]
[1769848755434,4.06276004,2641.1,2640.3,0.18968]
[1769848755632,3.5911935,2641.5,2640.3,0.18968]
[1769848755833,3.5911935,2641.5,2640.4,0.18967]
[1769848756033,4.06276004,2641.4,2640.4,0.18967]
[1769848756234,3.5911935,2641.3,2640.4,0.18967]
[1769848756437,3.5911935,2641.3,2639.8,3.787]
[1769848756731,3.5911935,2641.1,2639.8,3.787]
[1769848757037,3.5911935,2641.1,2639.8,7.60544171]
[1769848757233,3.5911935,2641.1,2640.4,0.18967]
[1769848757438,3.5911935,2640.9,2639.8,3.787]
[1769848757639,3.5911935,2640.9,2639.6,0.00314933]
[1769848757832,7.72481219,2640.8,2639.6,0.00314933]
[1769848758139,3.5911935,2640.7,2639.9,0.18971]
[1769848758333,3.5911935,2640.7,2638.9,6.04044171]
[1769848758529,3.5911935,2640.6,2638.8,3.788]
[1769848758929,3.788,2640.9,2638.8,3.788]
[1769848758930,3.5911935,2640.4,2638.8,3.788]
[1769848759140,3.5911935,2640.4,2639.3,0.18975]
[1769848759440,0.18962,2641.2,2639.3,0.18975]
[1769848759441,3.5911935,2640.2,2639.4,0.18974]
[1769848759741,4.26158202,2640.1,2639.3,0.00437456]
[1769848759941,3.5911935,2640.0,2639.3,0.00437456]
[1769848760444,3.5911935,2639.8,2638.8,3.788]
[1769848760734,4.05487036,2640.1,2639.7,0.18972]
[1769848760932,0.00356722,2640.2,2640.0,0.1897]
[1769848761335,3.59476072,2640.2,2638.9,3.81844171]
[1769848761839,0.00356722,2640.2,2638.9,3.81844171]
[1769848762033,0.00356722,2640.2,2639.7,0.18972]
[1769848762239,3.5911935,2641.0,2640.1,0.18969]
[1769848762636,4.09303744,2640.9,2639.6,3.81844171]
[1769848762844,3.5911935,2641.0,2640.2,0.18969]
[1769848763331,3.59432827,2641.0,2640.2,0.19316771]
[1769848763837,3.5911935,2640.8,2639.6,3.81844171]
[1769848764630,3.5911935,2640.8,2640.2,0.18969]
[1769848764830,0.00313477,2641.0,2640.3,0.18968]
[1769848765037,3.5911935,2641.6,2640.5,0.18966]
[1769848765431,3.5911935,2641.4,2640.5,0.18966]
[1769848765638,3.5911935,2641.4,2640.8,0.18964]
[1769848765937,3.5911935,2641.4,2640.2,3.823345]
[1769848765938,3.5911935,2641.4,2640.2,0.00490329]
[1769848766234,3.5911935,2641.2,2640.3,0.18968]
[1769848766542,3.5911935,2641.2,2640.4,0.18967]
[1769848767028,3.5911935,2641.2,2640.2,0.00490329]
[1769848767029,3.5911935,2641.0,2640.2,0.00490329]
[1769848767227,3.5911935,2641.0,2639.5,3.81844171]
[1769848767438,3.5911935,2640.8,2639.9,0.18971]
[1769848767842,3.5911935,2640.6,2639.9,0.18971]
[1769848768228,0.44583775,2640.5,2639.9,0.19364865]
[1769848768538,3.5911935,2641.3,2640.4,0.18967]
[1769848768939,7.69743456,2641.3,2640.4,0.18967]
[1769848769240,3.5911935,2641.2,2640.4,0.18967]
[1769848769633,4.27570645,2641.1,2640.4,0.18967]
[1769848769834,0.00488469,2641.4,2640.6,0.18965]
[1769848770236,4.27570645,2641.3,2640.6,0.18965]
[1769848770437,4.27570645,2641.3,2639.9,0.00393865]
[1769848770438,3.5911935,2641.2,2639.9,3.82238036]
[1769848770632,3.5911935,2641.2,2639.9,0.00393865]
[1769848770839,0.00488469,2641.4,2639.9,0.00393865]
[1769848770840,3.5911935,2641.0,2639.9,0.00393865]
[1769848771035,4.18980665,2641.1,2640.4,0.18967]
[1769848771329,3.5911935,2641.1,2639.9,3.82238036]
[1769848771531,0.00488469,2641.4,2639.9,3.82238036]
[1769848771732,3.59607819,2641.4,2640.8,0.18964]
[1769848772340,4.69e-06,2641.4,2641.2,0.18961]
[1769848773135,4.69e-06,2641.4,2640.7,0.18965]
[1769848773336,4.69e-06,2641.4,2640.7,3.81844171]
[1769848774139,3.5911935,2642.4,2641.0,3.81844171]
[1769848774442,4.22559932,2642.5,2641.3,3.81844171]
[1769848774638,4.22559932,2642.5,2640.5,1.7756296]
[1769848774639,4.22559932,2642.3,2640.3,3.81844171]
[1769848774840,7.81679282,2642.3,2641.4,0.1896]
[1769848775036,7.73236206,2645.2,2640.2,3.789]
[1769848775037,3.5911935,2643.1,2641.3,3.81844171]
[1769848775235,3.5911935,2643.1,2641.7,3.81844171]
[1769848775236,3.5911935,2642.9,2641.7,3.81844171]
[1769848775541,3.98002903,2643.1,2641.7,3.81844171]
[1769848775737,3.5911935,2643.7,2642.6,0.18951]
[1769848776133,3.97624952,2643.6,2642.6,0.18951]
[1769848776843,3.97897853,2643.6,2642.6,0.19222888]
[1769848777342,3.97897853,2643.6,2642.7,0.18951]
[1769848777545,2.19791098,2644.6,2642.7,0.18951]
[1769848777546,3.75720495,2644.1,2642.8,0.1895]
[1769848777935,4.0589852,2643.6,2642.8,0.1895]
[1769848778242,3.75720495,2643.8,2642.8,0.1895]
[1769848778739,4.18416833,2643.7,2642.8,0.1895]
[1769848778940,3.76151931,2643.8,2642.8,0.1895]
[1769848779141,3.75720495,2643.6,2642.8,0.1895]
[1769848779339,0.00431436,2643.8,2642.8,0.1895]
[1769848779835,3.57539878,2643.8,2642.8,0.1895]
[1769848780044,7.82168675,2643.7,2642.8,0.1895]
[1769848780240,3.57108442,2643.6,2642.8,0.1895]
[1769848780435,3.57108442,2643.6,2642.6,0.00271888]
[1769848780640,3.57108442,2643.4,2642.6,0.00271888]
[1769848780843,3.57108442,2643.4,2641.3,7.68901768]
[1769848781041,3.57108442,2643.2,2641.8,0.18957]
[1769848781341,1.16208855,2643.1,2641.8,0.18957]
[1769848781540,3.57108442,2643.0,2641.8,0.18957]
[1769848781845,3.96311733,2642.9,2641.9,0.18956]
[1769848782246,3.57108442,2642.8,2641.8,0.00390233]
[1769848782443,3.57108442,2642.8,2641.4,3.90001768]
[1769848782644,4.12009659,2642.7,2641.4,3.90001768]
[1769848783247,4.12009659,2642.7,2641.9,0.18956]
[1769848783449,4.12009659,2642.7,2641.9,0.19401419]
[1769848784246,3.57108442,2643.3,2642.2,3.90001768]
[1769848784449,3.57108442,2643.3,2641.9,0.00445419]
[1769848784650,4.18922058,2643.2,2641.9,3.90447187]
[1769848784849,4.18922058,2643.2,2642.3,3.90001768]
[1769848785057,3.57108442,2643.6,2642.3,3.90001768]
[1769848785354,4.32182359,2643.5,2642.3,3.90001768]
[1769848785553,7.89290801,2643.5,2642.3,3.90001768]
[1769848785751,3.57108442,2643.4,2642.3,3.90001768]
[1769848786145,4.32182359,2643.3,2641.9,3.90447187]
[1769848786346,7.89290801,2643.3,2641.9,3.90447187]
[1769848786545,7.89290801,2643.3,2642.6,0.18951]
[1769848786744,3.57108442,2643.3,2642.6,0.18951]
[1769848786943,3.806,2644.2,2641.9,3.90447187]
[1769848786944,3.57108442,2643.1,2641.9,3.90447187]
[1769848787144,3.57108442,2643.1,2641.9,0.19401419]
[1769848787349,4.10290577,2643.0,2641.9,4.09403187]
[1769848787555,4.10290577,2643.0,2642.0,4.08957768]
[1769848787851,7.67399019,2643.0,2642.0,0.18956]
[1769848788158,3.57108442,2642.9,2642.0,0.18956]
[1769848788557,7.61043969,2642.9,2642.0,0.18956]
[1769848788758,3.57108442,2642.9,2642.0,0.18956]
[1769848790958,4.26602563,2642.8,2642.1,4.08956768]
[1769848791156,3.57108442,2643.5,2641.9,0.00445419]
[1769848791354,3.57108442,2643.3,2641.9,0.00445419]
[1769848791558,3.57108442,2643.3,2642.0,0.18956]
[1769848791759,3.57108442,2643.1,2642.1,0.18955]
[1769848792056,4.03980929,2643.0,2642.1,0.18955]
[1769848792259,3.57108442,2642.9,2642.1,0.18955]
[1769848792560,4.27435144,2642.8,2642.1,0.18955]
[1769848794466,3.57108442,2642.7,2641.4,0.1896]
[1769848794957,7.88568424,2642.6,2641.4,0.1896]
[1769848795459,3.57108442,2642.6,2641.5,0.18959]
[1769848795660,4.03120544,2642.5,2641.5,0.18959]
[1769848796257,4.03120544,2642.5,2641.6,0.18958]
[1769848796652,4.03120544,2642.5,2641.7,0.18958]
[1769848796849,4.03120544,2642.5,2641.3,3.789]
[1769848796850,9.19808442,2642.4,2640.6,3.90001768]
[1769848797159,3.52667416,2642.2,2640.7,0.18964]
[1769848797557,3.4949092,2642.0,2640.7,0.18964]
[1769848798061,3.30192916,2641.9,2639.4,3.90001768]
[1769848798262,3.30192916,2641.8,2640.0,0.1897]
[1769848798560,3.30192916,2641.6,2640.0,0.1897]
[1769848798856,3.30555924,2641.6,2640.0,0.19201276]
[1769848799161,3.30192916,2641.4,2640.0,0.19201276]
[1769848799458,3.23812599,2641.2,2640.0,0.19201276]
[1769848799659,3.23812599,2641.2,2639.5,3.90001768]
[1769848799962,3.04611323,2641.0,2639.5,3.90001768]
[1769848800151,3.04611323,2640.9,2639.3,3.97675]
[1769848800351,4.20992706,2640.9,2639.3,0.18975]
[1769848800556,3.04611323,2640.8,2639.3,0.18975]
[1769848801060,3.04611323,2640.6,2639.3,0.18975]
[1769848801560,4.35270263,2640.5,2639.1,3.90001768]
[1769848801761,4.35270263,2640.5,2638.3,3.788]
[1769848801762,4.35270263,2640.5,2639.7,0.18972]
[1769848803663,2.82995188,2640.7,2639.7,0.18972]
[1769848804060,4.23130926,2640.6,2639.7,0.18972]
[1769848804363,2.82995188,2640.5,2639.4,3.90001768]
[1769848804763,4.33794609,2640.4,2639.4,3.90001768]
[1769848805661,0.00363008,2641.6,2639.6,3.90001768]
[1769848805857,0.00363008,2641.6,2639.8,3.90001768]
[1769848806054,2.77894312,2641.3,2639.8,3.90001768]
[1769848806360,4.07638202,2641.2,2639.1,3.90001768]
[1769848806553,2.77894312,2641.1,2639.1,3.90001768]
[1769848806960,2.77857242,2640.9,2639.1,3.90001768]
[1769848807456,4.03512139,2640.8,2639.3,5.35305106]
[1769848807661,2.77216776,2641.6,2639.7,3.57742146]
[1769848807963,2.77216776,2641.6,2640.1,3.57742146]
[1769848807964,4.03512139,2641.5,2640.1,3.57742146]
[1769848808159,2.77216776,2641.6,2640.1,3.57742146]
[1769848808359,2.76853768,2641.4,2640.1,3.57742146]
[1769848808660,4.03979747,2641.3,2640.1,3.57742146]
[1769848809064,4.03979747,2641.5,2640.1,3.57742146]
[1769848809262,2.79000249,2641.5,2638.3,11.26621284]
[1769848809567,2.79000249,2641.5,2638.0,14.04213555]
[1769848809568,2.79000249,2641.3,2639.3,3.57742146]
[1769848809768,2.79000249,2641.2,2638.9,3.57742146]
[1769848809971,2.79000249,2641.1,2638.9,3.57742146]
[1769848810364,2.79000249,2640.9,2638.9,3.57742146]
[1769848810668,2.79000249,2640.7,2638.9,3.57742146]
[1769848811067,3.93981378,2640.6,2639.1,3.57742146]
[1769848811471,2.85831557,2640.5,2639.3,3.57742146]
[1769848811859,3.98968343,2640.9,2638.2,3.789]
[1769848811860,2.85831557,2640.3,2638.7,3.57742146]
[1769848812272,6.847999,2640.2,2638.7,3.57742146]
[1769848812566,2.85831557,2640.1,2638.7,3.57742146]
[1769848812765,2.85831557,2640.1,2639.0,3.57742146]
[1769848812961,3.94124418,2640.1,2639.0,3.57742146]
[1769848813157,2.85831557,2640.5,2639.0,3.57742146]
[1769848813360,2.89687478,2641.0,2639.4,3.57742146]
[1769848813564,2.89687478,2640.3,2639.3,0.18975]
[1769848814068,2.89687478,2640.1,2638.5,3.57742146]
[1769848814269,2.89687478,2640.1,2638.7,3.57742146]
[1769848814562,2.70712478,2639.9,2638.7,3.57742146]
[1769848814967,3.803176,2639.8,2638.7,3.57742146]
[1769848815163,3.803176,2639.8,2638.6,0.1898]
[1769848815164,2.70712478,2639.7,2638.6,0.1898]
[1769848815372,2.70991297,2639.7,2638.6,0.1898]
[1769848815569,6.69433002,2639.6,2638.6,0.1898]
[1769848816268,2.71039951,2639.5,2638.1,3.57742146]
[1769848816673,0.18988,2637.6,2633.5,1.03296624]
[1769848816865,1.7756296,2634.7,2631.9,0.19028]
[1769848817069,11.67037422,2634.6,2632.6,34.19817886]
[1769848817366,1.7756296,2634.2,2631.8,0.0008]
[1769848817566,15.20598569,2634.1,2631.9,3.92516228]
[1769848817773,1.7756296,2633.7,2631.9,3.92516228]
[1769848817975,5.70498569,2633.6,2632.0,15.59623995]
[1769848818164,9.502,2633.5,2632.0,15.59623995]
[1769848818469,4.30591384,2633.4,2632.2,3.92516228]
[1769848818864,4.30591384,2633.5,2632.4,19.58896193]
[1769848819068,1.77851703,2634.1,2632.3,19.52140223]
[1769848819372,4.14288829,2633.4,2632.3,19.52140223]
[1769848819571,4.14288829,2633.4,2631.8,0.0008]
[1769848819572,0.03292805,2633.3,2631.8,3.90949825]
[1769848819772,0.03292805,2633.3,2631.8,0.0008]
[1769848819972,0.03292805,2633.1,2631.8,4.97803995]
[1769848820368,4.14288829,2633.0,2631.8,4.97803995]
[1769848820568,4.17581634,2633.0,2631.8,4.97803995]
[1769848820874,4.2749902,2633.3,2631.9,3.90869825]
[1769848821171,4.24206215,2632.9,2631.9,3.90869825]
[1769848821360,4.10663701,2633.2,2632.1,3.86781114]
[1769848821563,4.10663701,2633.2,2632.4,3.86781114]
[1769848821761,0.11470226,2633.5,2632.1,3.86781114]
[1769848822165,4.22133927,2633.4,2632.2,4.97723995]
[1769848822370,4.10663701,2633.4,2632.1,3.86781114]
[1769848822572,4.06898477,2633.6,2632.5,3.86781114]
[1769848822773,0.27912711,2633.7,2632.0,3.86781114]
[1769848823075,4.06898477,2633.5,2632.0,3.86781114]
[1769848823266,0.20207709,2633.6,2632.2,3.87471379]
[1769848823470,0.10089697,2633.6,2632.2,3.87471379]
[1769848823673,0.10089697,2633.6,2632.3,24.56620188]
[1769848823873,0.10089697,2633.6,2632.4,19.58896193]
[1769848824177,4.22722883,2633.5,2632.3,4.97723995]
[1769848824876,4.22722883,2633.5,2632.2,3.87471379]
[1769848824877,4.3281258,2633.5,2632.2,3.87471379]
[1769848825070,4.3281258,2633.5,2631.8,3.87551379]
[1769848825270,0.10089697,2633.5,2631.9,8.83232315]
[1769848825470,4.20183801,2633.4,2632.0,3.8550832]
[1769848825872,4.34199616,2633.4,2632.0,3.8550832]
[1769848826072,0.14015815,2633.3,2632.0,3.8550832]
[1769848826274,0.14015815,2633.9,2632.0,3.8550832]
[1769848826479,3.96850765,2633.2,2632.2,3.8550832]
[1769848826673,3.96850765,2633.3,2632.0,3.8550832]
[1769848826868,0.14015815,2633.6,2632.2,3.8550832]
[1769848827068,3.96850765,2633.5,2632.5,3.8550832]
[1769848827274,3.96850765,2633.2,2632.5,3.8550832]
[1769848827470,4.09217095,2633.7,2632.6,28.42176183]
[1769848827676,3.96850765,2634.0,2632.6,3.85555995]
[1769848827977,4.09217095,2633.6,2632.7,4.97723995]
[1769848828173,4.09217095,2633.7,2632.8,3.85555995]
[1769848828481,0.00288743,2634.1,2633.1,19.58896193]
[1769848828680,0.13920465,2634.9,2633.6,3.57742146]
[1769848828883,0.13920465,2634.9,2633.7,8.55466141]
[1769848829173,4.10938659,2635.2,2634.3,16.32298122]
[1769848829373,7.75241585,2634.8,2633.5,19.90040268]
[1769848829585,4.06326365,2635.1,2633.6,3.57742146]
[1769848829782,0.00376997,2634.8,2634.4,3.57742146]
[1769848829976,2.1112175,2637.4,2634.4,3.57742146]
[1769848829977,3.82741585,2635.6,2634.4,19.90040268]
[1769848830178,4.06326365,2635.2,2634.5,4.97723995]
[1769848830386,3.82741585,2635.3,2634.5,4.97723995]
[1769848830778,4.06326365,2635.2,2634.5,4.97723995]
[1769848831084,3.82741585,2635.1,2633.5,3.57742146]
[1769848831382,4.1635905,2635.0,2633.9,14.93298122]
[1769848831581,4.1635905,2635.0,2633.7,18.51040268]
[1769848831784,4.1635905,2635.0,2634.1,14.93298122]
[1769848831972,4.1635905,2635.0,2633.8,4.92804396]
[1769848831973,3.82741585,2634.9,2633.8,4.92804396]
[1769848832175,3.82741585,2634.9,2633.1,0.00288743]
[1769848832375,3.82741585,2634.7,2633.2,8.50546542]
[1769848832571,3.82741585,2634.7,2633.3,18.51040268]
[1769848832785,4.38315691,2634.6,2633.3,3.71866656]
[1769848832986,4.38315691,2634.6,2633.4,4.92804396]
[1769848833178,4.38315691,2634.7,2633.4,4.92804396]
[1769848833384,4.38315691,2634.8,2633.5,3.70962046]
[1769848833583,0.19006,2635.1,2633.9,3.70962046]
[1769848833778,4.40198414,2634.6,2633.9,3.70962046]
[1769848833974,0.62114362,2635.1,2633.5,3.70962046]
[1769848834179,0.43108362,2635.0,2633.5,3.70962046]
[1769848834379,4.40198414,2634.5,2633.5,3.70962046]
[1769848834586,4.79011747,2635.0,2633.5,3.70962046]
[1769848834782,0.43108362,2635.0,2633.6,4.92804396]
[1769848834990,4.18018051,2634.4,2633.6,8.63766442]
[1769848835185,4.18018051,2634.9,2633.6,8.63766442]
[1769848835387,0.43108362,2635.0,2633.6,23.57064564]
[1769848835587,4.3007922,2634.3,2633.7,18.63676343]
[1769848835884,3.80353911,2635.3,2634.1,3.70378221]
[1769848836291,4.3007922,2634.5,2634.2,18.63676343]
[1769848836491,0.16757936,2635.0,2633.8,3.70378221]
[1769848836691,4.20635059,2634.4,2633.8,3.70378221]
[1769848836892,2.81635059,2634.4,2634.3,14.93298122]
[1769848837186,5.9172175,2636.3,2634.1,3.70386421]
[1769848837387,5.9172175,2636.3,2632.7,0.19023]
[1769848837388,0.19012,2634.3,2630.4,3.93339266]
[1769848837690,0.19012,2634.3,2627.9,0.19987527]
[1769848837691,0.19032,2631.4,2629.1,2.228]
[1769848837889,0.19032,2631.4,2628.3,3.799]
[1769848837890,1.14044651,2631.1,2628.3,3.799]
[1769848838092,0.19037,2630.8,2628.4,0.0008]
[1769848838297,3.98937,2630.8,2628.4,14.93378122]
[1769848838492,4.10017782,2630.7,2629.1,14.93298122]
[1769848838688,4.10017782,2630.7,2628.4,0.0044425]
[1769848838888,4.10017782,2630.7,2629.3,14.93298122]
[1769848839195,4.10017782,2630.7,2628.4,0.0044425]
[1769848839391,5.17387303,2630.7,2629.0,14.93298122]
[1769848839583,1.07369521,2630.6,2628.8,3.89154597]
[1769848839783,5.07007521,2630.6,2628.8,3.89154597]
[1769848839985,5.28579713,2630.5,2628.8,3.89154597]
[1769848840193,1.07369521,2628.2,2626.9,1.23378529]
[1769848840393,3.806,2627.3,2623.7,2.41988]
[1769848840595,1.07369521,2626.6,2624.3,4.23378529]
[1769848840898,1.07369521,2626.0,2619.6,26.604]
[1769848841102,1.07369521,2625.2,2623.0,0.00289373]
[1769848841394,0.94908219,2624.6,2618.9,0.19122]
[1769848841595,2.44889834,2624.8,2618.9,0.19122]
[1769848841596,0.94908219,2623.7,2619.3,4.41156037]
[1769848841894,0.94908219,2623.1,2619.3,4.41156037]
[1769848842093,0.94908219,2622.7,2619.4,3.89154597]
[1769848842291,3.88561612,2623.0,2620.3,3.89154597]
[1769848842494,0.73634356,2622.6,2621.3,3.89154597]
[1769848842685,0.00419046,2623.5,2622.1,3.89154597]
[1769848842991,2.49561612,2622.9,2622.5,3.89154597]
[1769848843191,0.94908219,2624.2,2623.0,0.77836668]
[1769848843385,3.2796517,2622.7,2621.4,0.00356768]
[1769848843587,2.46623889,2623.1,2619.7,3.803]
[1769848843783,4.02723133,2622.6,2618.2,0.19128]
[1769848843988,4.02723133,2622.7,2619.3,6.035]
[1769848844287,0.00464289,2622.7,2619.4,2.231]
[1769848844494,0.00464289,2622.7,2620.5,0.00356768]
[1769848844695,7.37847495,2622.6,2619.3,0.00347874]
[1769848844890,3.2796517,2622.5,2619.3,0.00347874]
[1769848845187,3.62880167,2622.3,2619.3,0.00347874]
[1769848845497,0.19101,2622.0,2619.3,0.00347874]
[1769848845693,3.62880167,2620.4,2617.7,3.89154597]
[1769848845887,3.62880167,2619.6,2615.5,3.89154597]
[1769848846091,3.62880167,2619.6,2614.2,0.19539526]
[1769848846092,3.62880167,2617.6,2614.2,0.00382526]
[1769848846395,3.62880167,2617.3,2614.3,3.89154597]
[1769848846599,3.62880167,2617.2,2614.3,3.89154597]
[1769848846799,3.62880167,2617.0,2614.4,3.14630792]
[1769848847097,3.62880167,2616.8,2614.3,3.89154597]
[1769848847308,0.19153,2614.9,2608.2,0.19201]
[1769848847595,4.01678825,2614.8,2612.7,3.89154597]
[1769848847801,4.01678825,2614.8,2608.2,2.64090834]